{"text_format":"1","workbook":"xlsx","n_sheets":1,"sheets":["Invoice"],"not_rendered":{"charts":0,"images":0,"macros":1,"external_links":1,"defined_names":11,"comments":0,"pivot_tables":0},"unopened":[],"bounds":{"document_bytes":16777216,"sheet_cells":100000,"rows_first":2000,"rows_last":500,"rows_between":2000,"halvings":0,"cell_chars":16384,"cell_head_chars":4096},"cells_cut":0,"cells_raw":0,"read":"whole","date_system":"1900"}

{"sheet":"Invoice","index":0,"n_rows":52,"n_cols":16,"rows_kept":52,"cut":false,"hidden":false,"merged":[[1,1,1,2],[5,1,5,2],[9,4,9,5],[51,15,59,18],[82,4,82,7],[82,8,82,10],[50,1,51,1],[50,2,52,2],[50,3,51,4],[50,5,50,11],[51,5,51,6],[51,7,51,8],[51,9,52,9],[51,10,52,10],[52,3,52,4],[70,6,70,7],[71,6,71,7],[76,4,76,9],[81,4,81,7],[81,8,81,10],[2,1,2,2],[3,1,3,2],[4,1,4,2],[48,2,48,3],[48,8,48,10],[7,4,7,5],[7,7,7,8],[11,1,13,2],[11,4,12,6],[11,7,13,8],[13,4,13,6],[15,1,15,2],[15,3,15,5],[15,6,15,8],[16,1,16,2],[16,3,16,4],[16,6,16,8],[17,1,17,2],[17,3,17,5],[17,6,17,8],[43,0,44,0],[43,1,44,8],[45,0,46,0],[45,1,46,8],[40,2,40,4],[40,6,40,7],[41,2,41,4],[42,6,42,8]]}
[]
[]
[]
[]
[]
[null,null,null,null,null,"فاتــــــــــورة رقم"]
[null,null,null,null,null,"تاريخ "]
[null,null,"الاسم :",null,null,null,"   رقم العقد :"]
[]
[null,null,"الجوال :"]
[]
[null,"التعليقات :",null,null,"        في حال الايداع بالحساب البنكي الرجاء الايداع بحساب /"]
[]
[null,null,null,null,"   في حال الدفع شيك الرجاء اصدار الشيك بالمبلغ المطلوب باسم / "]
[]
[null,"مندوب المبيعات",null,"الاداره ",null,null,"شروط  اتفاق التركيب "]
[null,null,null,null,null,null,"يجب انا لايزيد المبلغ عن 15% من قيمة العقد حتى يتم التركيب "]
[null,"أبو يوسف ",null,"أبو زياد ",null,null,"في حالة مخالفة اتفاق التركيب ناسف لعدم التركيب "]
[]
["رقم السداد","تاريخ السداد","المسدد","الوحده","الكمية ","البيان ","الوصف ","سعر الوحدة","المبلغ"]
[null,null,null,null,null,null,null,null,{"$f":"E21*H21","v":0}]
[null,null,null,null,null,null,null,null,{"$f":"E22*H22","v":0}]
[null,null,null,null,null,null,null,null,{"$f":"E23*H23","v":0}]
[null,null,null,null,null,null,null,null,{"$f":"E24*H24","v":0}]
[null,null,null,null,null,null,null,null,0]
[null,null,null,null,null,null,null,null,0]
[null,null,null,null,null,null,null,null,0]
[null,null,null,null,null,null,null,null,0]
[null,null,null,null,null,null,null,null,0]
[null,null,null,null,null,null,null,null,0]
[null,null,null,null,null,null,null,null,0]
[null,null,null,null,null,null,null,null,0]
[null,null,null,null,null,null,null,null,0]
[null,null,null,null,null,null,null,null,0]
[null,null,null,null,null,null,null,null,0]
[null,null,null,null,null,null,null,null,0]
[null,null,null,null,null,null,null,null,0]
[null,null,null,null,null,null,null,"خصم"]
[null,null,{"$f":"SUM(C21:C37)","v":0},null,null,"مقدار 15% من قيمة العقد",{"$f":"I39*15%","v":0},"اجمالي العقد ",{"$f":"SUM(I21:I37)-I38","v":0}]
[null,null,null,null,null,null,null,"المسدد",{"$f":"C39","v":0}]
[{"$f":"COUNTA(E21:E37)","v":0},"عدد الاصناف ","   اعد الفاتورة : ",null,null,null,"الرصيد المتبقي ",null,{"$f":"I39-I40","v":0}]
[]
[]
["ملاحظات على الفاتورة "]
[]
["مواصفات اضافية "]
[]
[]
[]
[]
[]
[null,null,null,null,null,null,null,null,null,null,null,null,null,null,null,"أريد تغيير هذا الرقم تلقائى بتسلسل بدون الضغط\nعلى Run -وبمجرد الإنتهاء من الفاتورة وطباعتها\nثم مسح مافيها لعمل فاتورة اخرى اريد تغير هذا الرقم\nللرقم التالى بحيث لا يحدث خطأ فى تسلسل رقم الفاتورة\nاذا تغير يدويا"]